fUST/lending_fUST_20251120
["ID","MTS","AMOUNT","RATE_DAILY","PERIOD"]
[394463018,1763602312740,500.0,0.00040105,30]
[394463019,1763602313003,250.4073667,0.00040105,30]
[394463020,1763602324000,349.37111978,0.00040105,30]
[394463021,1763602325858,180.75619349,0.00040105,30]
[394463025,1763602334282,264.99856323,0.00040105,30]
[394463028,1763602337182,200.62936528,0.00040105,30]
[394463033,1763602346108,332.52948046,0.00040105,30]
[394463040,1763602358365,359.34539112,0.00040105,30]
[394463042,1763602362977,150.0,0.00040105,30]
[394463045,1763602367284,182.68398984,0.00040105,30]
[394463046,1763602367576,374.78702515,0.00040105,30]
[394463047,1763602368467,500.0,0.00040105,30]
[394463048,1763602368752,556.49968922,0.00040105,30]
[394463055,1763602376630,500.0,0.00040105,30]
[394463056,1763602376902,253.68248793,0.00040105,30]
[394463059,1763602379207,284.93560737,0.00040105,30]
[394463060,1763602379288,305.60602008,0.00040105,30]
[394463063,1763602383029,437.92271302,0.00040105,30]
[394463068,1763602388044,161.01844552,0.00040105,30]
[394463076,1763602400660,286.06912188,0.00040103,30]
[394463086,1763602417336,179.38813178,0.00040103,30]
[394463090,1763602421038,175.6516872,0.00040103,30]
[394463095,1763602452516,8536.46009229,8.852e-05,2]
[394463103,1763602734810,600.0,0.00040108,120]
[394463104,1763602764391,180.14779195,0.00013724,7]
[394463105,1763602766630,719.87057664,0.00013724,7]
[394463107,1763602823661,889.0,0.00032877,120]
[394463109,1763602900988,386.85623601,0.00013724,7]
[394463110,1763602903844,1545.87751908,0.00013724,7]
[394463111,1763602936706,164.58446348,0.00040108,30]
[394463112,1763602941670,188.930134,0.00030137,120]
[394463116,1763603014512,5000.0,0.00015,10]
[394463117,1763603022576,5000.0,0.00015,10]
[394463118,1763603029154,1000.0,0.0004011,120]
[394463119,1763603029842,1027.77,0.0004011,120]
[394463120,1763603029976,1000.0,0.0004011,120]
[394463121,1763603030646,1000.0,0.0004011,120]
[394463122,1763603031263,1000.0,0.0004011,120]
[394463123,1763603031856,1000.0,0.0004011,120]
[394463124,1763603032366,1000.0,0.0004011,120]
[394463125,1763603033271,1000.0,0.0004011,120]
[394463126,1763603034092,1000.0,0.0004011,120]
[394463127,1763603037555,5000.0,0.00015,10]
[394463128,1763603044816,1055.6,0.0004011,120]
[394463129,1763603045822,5000.0,0.00015,10]
[394463130,1763603049588,1000.0,0.0004011,120]
[394463131,1763603075353,200.65437017,0.00013724,7]
[394463132,1763603077500,801.81486318,0.00013724,7]
[394463141,1763603127782,163.276295,0.0004011,40]
[394463152,1763603211223,231.83088661,0.00013724,7]
[394463154,1763603241496,164.0,0.000328,120]
[394463155,1763603242428,164.0,0.000328,120]
[394463156,1763603243808,164.0,0.000328,120]
[394463157,1763603250318,197.647897,0.0004011,40]
[394463162,1763603382814,746.27448046,0.00013724,7]
[394463163,1763603403179,1660.94334346,0.00013699,7]
[394463164,1763603420818,10000.01,7.747e-05,2]
[394463165,1763603420844,14798.8927292,7.747e-05,2]
[394463196,1763603432439,-212.64253529,8.329e-05,2]
[394463198,1763603432448,-58.65643171,8.371e-05,2]
[394463294,1763603438290,-153.98610358,8.371e-05,2]
[394463295,1763603438310,-212.64253529,8.413e-05,2]
[394463296,1763603438320,-25.25018092,8.414e-05,2]
[394463297,1763603438336,-316.1460267,8.414e-05,2]
[394463298,1763603438346,-614.51317371,8.501e-05,2]
[394463299,1763603438357,-138.50321439,8.666e-05,2]
[394463300,1763603438397,-161.49678561,8.666e-05,2]
[394463301,1763603438408,-300.0,8.666e-05,2]
[394463302,1763603438418,-300.0,8.666e-05,2]
[394463303,1763603438428,-300.0,8.666e-05,2]
[394463304,1763603438438,-1200.0,8.666e-05,2]
[394463305,1763603438448,-155.09017379,8.666e-05,2]
[394463306,1763603438459,-500.0,8.666e-05,2]
[394463308,1763603438468,-500.0,8.666e-05,2]
[394463310,1763603438478,-25.1430406,8.666e-05,2]
[394463317,1763603455056,271508.31349189,0.00040108,20]
[394463321,1763603685644,339.59105924,0.00013724,7]
[394463322,1763603795991,439.85593325,7.994e-05,2]
[394463323,1763603798637,791.74067986,8.076e-05,2]
[394463324,1763603815874,454.47314867,0.00013724,7]
[394463325,1763603826320,4021.85593325,8.247e-05,2]
[394463326,1763603834940,4021.85593325,8.247e-05,2]
[394463327,1763603849946,724.70152039,8.247e-05,2]
[394463328,1763603849968,3297.15441286,8.247e-05,2]
[394463329,1763603857783,4021.85593325,8.247e-05,2]
[394463330,1763603872660,4021.85593325,8.247e-05,2]
[394463331,1763603880574,1121.83789545,8.247e-05,2]
[394463332,1763603895563,4021.85593325,8.247e-05,2]
[394463333,1763603910955,1318.8128242,8.247e-05,2]
[394463336,1763603991102,534.5384767,0.00013724,7]
[394463338,1763604023531,-2263.1871758,8.165e-05,2]
[394463339,1763604023567,-208.38968458,8.206e-05,2]
[394463340,1763604023598,-400.0,8.246e-05,2]
[394463341,1763604023629,-1993.66910344,8.247e-05,2]
[394463342,1763604026347,-269.51807236,8.247e-05,2]
[394463343,1763604026375,-885.23048353,8.247e-05,2]
[394463344,1763604032465,237.0,8.246e-05,2]
[394463345,1763604056007,-237.0,8.246e-05,2]
[394463346,1763604056226,237.0,8.164e-05,2]
[394463347,1763604065520,306.0,0.00040107,30]
[394463348,1763604071473,188.568411,8.247e-05,2]
[394463349,1763604079197,3582.0,8.247e-05,2]
[394463350,1763604094310,1324.70336966,8.247e-05,2]
[394463351,1763604102111,3582.0,8.247e-05,2]
[394463352,1763604124414,611.73821934,8.247e-05,2]
[394463353,1763604124452,2970.26178066,8.247e-05,2]
[394463355,1763604146890,3582.0,8.247e-05,2]
[394463356,1763604169658,3582.0,8.247e-05,2]
[394463357,1763604192985,3582.0,8.247e-05,2]
[394463358,1763604215501,2836.01,8.247e-05,2]
[394463359,1763604215524,745.99,8.247e-05,2]
[394463360,1763604237741,3582.0,8.247e-05,2]
[394463361,1763604260741,430.05,0.00012626,30]
[394463362,1763604260766,714.22,0.00012626,30]
[394463363,1763604261046,3582.0,8.247e-05,2]
[394463364,1763604261212,2288.55,0.00013774,30]
[394463365,1763604261673,1997.23,0.00014921,30]
[394463366,1763604261700,1435.59,0.00014921,30]
[394463367,1763604262570,3564.41,0.00016069,30]
[394463368,1763604262595,1012.68,0.00016069,30]
[394463369,1763604262991,5721.36,0.00017217,30]
[394463374,1763604267906,683.59653196,7.975e-05,2]
[394463375,1763604270315,1230.47375752,8.056e-05,2]
[394463376,1763604272661,152.2823345,8.169e-05,2]
[394463377,1763604283335,3582.0,8.247e-05,2]
[394463378,1763604305573,3582.0,8.247e-05,2]
[394463379,1763604328940,769.65737602,8.247e-05,2]
[394463380,1763604328964,2812.34262398,8.247e-05,2]
[394463381,1763604331533,-3582.0,8.33e-05,2]
[394463382,1763604331562,-204.22189089,8.343e-05,2]
[394463383,1763604331591,-590.15365568,8.355e-05,2]
[394463384,1763604331620,-562.20098893,8.355e-05,2]
[394463385,1763604331775,-122.856929,8.355e-05,2]
[394463386,1763604331804,-1233.10425227,8.409e-05,2]
[394463387,1763604331833,-2192.18533737,8.463e-05,2]
[394463388,1763604331864,-237.0,8.478e-05,2]
[394463389,1763604331893,-500.0,8.479e-05,2]
[394463390,1763604331927,-500.0,8.479e-05,2]
[394463391,1763604332031,-500.0,8.479e-05,2]
[394463392,1763604332064,-500.0,8.479e-05,2]
[394463393,1763604332222,-500.0,8.479e-05,2]
[394463394,1763604332252,-500.0,8.479e-05,2]
[394463395,1763604332281,-500.0,8.479e-05,2]
[394463396,1763604332309,-500.0,8.479e-05,2]
[394463397,1763604332338,-602.13385192,8.479e-05,2]
[394463398,1763604332374,-500.0,8.479e-05,2]
[394463399,1763604332407,-500.0,8.479e-05,2]
[394463400,1763604332441,-295.74229616,8.479e-05,2]
[394463401,1763604332569,-204.25770384,8.479e-05,2]
[394463402,1763604332604,-500.0,8.479e-05,2]
[394463403,1763604332641,-500.0,8.479e-05,2]
[394463404,1763604332681,-500.0,8.479e-05,2]
[394463405,1763604332715,-500.0,8.479e-05,2]
[394463406,1763604332756,-500.0,8.479e-05,2]
[394463407,1763604332789,-628.24791952,8.479e-05,2]
[394463408,1763604332821,-500.0,8.479e-05,2]
[394463409,1763604332852,-500.0,8.479e-05,2]
[394463410,1763604332885,-500.0,8.479e-05,2]
[394463411,1763604332994,-500.0,8.479e-05,2]
[394463412,1763604333025,-500.0,8.479e-05,2]
[394463413,1763604333056,-500.0,8.479e-05,2]
[394463414,1763604333086,-500.0,8.479e-05,2]
[394463415,1763604333116,-500.0,8.479e-05,2]
[394463416,1763604333148,-500.0,8.479e-05,2]
[394463417,1763604333179,-500.0,8.479e-05,2]
[394463418,1763604333209,-500.0,8.479e-05,2]
[394463419,1763604333239,-500.0,8.479e-05,2]
[394463420,1763604333274,-500.0,8.479e-05,2]
[394463421,1763604333339,-500.0,8.479e-05,2]
[394463422,1763604333373,-500.0,8.479e-05,2]
[394463423,1763604333405,-500.0,8.479e-05,2]
[394463424,1763604333436,-500.0,8.479e-05,2]
[394463425,1763604333468,-500.0,8.479e-05,2]
[394463426,1763604333499,-500.0,8.479e-05,2]
[394463427,1763604333531,-500.0,8.479e-05,2]
[394463428,1763604333563,-500.0,8.479e-05,2]
[394463429,1763604333607,-600.0,8.479e-05,2]
[394463430,1763604333644,-209.85634433,8.521e-05,2]
[394463431,1763604333723,-380.29731134,8.521e-05,2]
[394463432,1763604333758,-1200.0,8.572e-05,2]
[394463433,1763604333792,-167.19,8.578e-05,2]
[394463434,1763604333835,-395.2109804,8.58e-05,2]
[394463435,1763604333869,-252.142156,8.58e-05,2]
[394463436,1763604333902,-176.11920279,8.598e-05,2]
[394463437,1763604333935,-317.109,8.661e-05,2]
[394463438,1763604333969,-203.88855036,8.661e-05,2]
[394463439,1763604336402,-5219.0481552,8.662e-05,2]
[394463440,1763604337410,-10000.01,8.662e-05,2]
[394463441,1763604337503,-10000.01,8.662e-05,2]
[394463442,1763604337605,-10000.01,8.662e-05,2]
[394463443,1763604337720,-10000.01,8.662e-05,2]
[394463444,1763604337820,-10000.01,8.662e-05,2]
[394463445,1763604338010,-10000.01,8.662e-05,2]
[394463446,1763604338049,-10000.01,8.662e-05,2]
[394463447,1763604338201,-10000.01,8.662e-05,2]
[394463448,1763604341962,1050.65,0.00013288,30]
[394463449,1763604342369,2101.3,0.00014496,30]
[394463450,1763604342786,3151.95,0.00015704,30]
[394463451,1763604343193,4202.6,0.00016912,30]
[394463452,1763604370766,-187.6936316,8.405e-05,2]
[394463453,1763604370794,-187.6936316,8.49e-05,2]
[394463454,1763604370825,-187.6936316,8.576e-05,2]
[394463455,1763604370893,-8873.8482104,8.662e-05,2]
[394463456,1763604370950,-10000.01,8.662e-05,2]
[394463457,1763604371063,-10000.01,8.662e-05,2]
[394463458,1763604371168,-10000.01,8.662e-05,2]
[394463459,1763604371284,-10000.01,8.662e-05,2]
[394463461,1763604397745,341.47632939,0.00040106,120]
[394463462,1763604398257,341.47632939,0.00040106,120]
[394463463,1763604398682,341.47632939,0.00040106,120]
[394463464,1763604399135,341.47632939,0.00040106,120]
[394463465,1763604399540,341.47632939,0.00040106,120]
[394463466,1763604399941,341.47632939,0.00040106,120]
[394463467,1763604400334,341.47632939,0.00040106,120]
[394463468,1763604400847,341.47632939,0.00040106,120]
[394463469,1763604401236,341.47632939,0.00040106,120]
[394463470,1763604401620,341.47632939,0.00040106,120]
[394463471,1763604402007,341.47632939,0.00040106,120]
[394463472,1763604402387,341.47632939,0.00040106,120]
[394463473,1763604402778,341.47632939,0.00040106,120]
[394463474,1763604404584,341.47632939,0.00040106,120]
[394463475,1763604404963,341.47632939,0.00040106,120]
[394463476,1763604422265,155.01,1e-05,2]
[394463477,1763604422571,155.01,1e-05,2]
[394463478,1763604422868,155.01,1e-05,2]
[394463479,1763604424359,155.01,1e-05,2]
[394463480,1763604424702,155.01,1e-05,2]
[394463481,1763604425026,155.01,1e-05,2]
[394463482,1763604425294,155.01,1e-05,2]
[394463483,1763604425648,155.01,1e-05,2]
[394463484,1763604425947,155.01,1e-05,2]
[394463485,1763604426238,155.01,1e-05,2]
[394463486,1763604426523,155.01,1e-05,2]
[394463487,1763604426802,155.01,1e-05,2]
[394463488,1763604427147,155.01,1e-05,2]
[394463489,1763604427407,155.01,1e-05,2]
[394463490,1763604427696,155.01,1e-05,2]
[394463491,1763604427976,155.01,1e-05,2]
[394463492,1763604428288,155.01,1e-05,2]
[394463493,1763604428585,155.01,1e-05,2]
[394463494,1763604429019,155.01,1e-05,2]
[394463495,1763604429232,155.01,1e-05,2]
[394463496,1763604429659,155.01,1e-05,2]
[394463497,1763604430021,155.01,1e-05,2]
[394463498,1763604431902,155.01,1e-05,2]
[394463499,1763604432213,155.01,1e-05,2]
[394463500,1763604432505,155.01,1e-05,2]
[394463501,1763604432785,155.01,1.1e-05,2]
[394463502,1763604433111,155.01,1.1e-05,2]
[394463503,1763604433403,155.01,1.1e-05,2]
[394463504,1763604433671,155.01,1.1e-05,2]
[394463505,1763604434314,155.01,1.1e-05,2]
[394463506,1763604434616,155.01,1.1e-05,2]
[394463507,1763604434912,155.01,1.1e-05,2]
[394463508,1763604435190,155.01,1.1e-05,2]
[394463509,1763604435474,155.01,1.1e-05,2]
[394463510,1763604435751,155.01,1.1e-05,2]
[394463511,1763604436087,155.01,1.1e-05,2]
[394463512,1763604436356,155.01,1.1e-05,2]
[394463513,1763604436647,155.01,1.1e-05,2]
[394463514,1763604437608,155.01,1.1e-05,2]
[394463515,1763604438211,155.01,1.1e-05,2]
[394463516,1763604438748,155.01,1.1e-05,2]
[394463517,1763604439116,155.01,1.1e-05,2]
[394463518,1763604439391,155.01,1.1e-05,2]
[394463519,1763604439699,155.01,1.1e-05,2]
[394463520,1763604439969,155.01,1.1e-05,2]
[394463521,1763604440276,155.01,1.1e-05,2]
[394463522,1763604440779,155.01,1.1e-05,2]
[394463523,1763604440866,155.01,1.1e-05,2]
[394463524,1763604441287,155.01,1.1e-05,2]
[394463525,1763604441575,155.01,1.1e-05,2]
[394463533,1763604581999,1000.0,0.00032,120]
[394463568,1763604633540,-1000.0,8.145e-05,2]
[394463767,1763604644448,25352.0,8e-05,2]
[394463782,1763604759805,481.78922267,8.064e-05,2]
[394463783,1763604767972,481.78922267,8.064e-05,2]
[394463785,1763604770268,9036.43155466,7.531e-05,2]
[394463786,1763604770290,10000.01,7.531e-05,2]
[394463787,1763604770317,11897.5,7.531e-05,2]
[394463788,1763604770343,4286.80350834,7.531e-05,2]
[394463789,1763604823150,160.0,0.0001,14]
[394463790,1763604830292,507.0,0.00032877,120]
[394463792,1763605021251,211.44629024,0.00013724,7]
[394463793,1763605024594,844.93937578,0.00013724,7]
[394463806,1763605166333,200.13745307,7.864e-05,2]
[394463809,1763605174185,609.12933801,7.806e-05,2]
[394463810,1763605174381,200.13745307,7.864e-05,2]
[394463811,1763605182735,200.13745307,7.864e-05,2]
[394463812,1763605190476,200.13745307,7.864e-05,2]
[394463813,1763605198625,200.13745307,7.864e-05,2]
[394463814,1763605199860,-200.13745307,7.943e-05,2]
[394463815,1763605199887,-566.93596131,8.18e-05,2]
[394463816,1763605199914,-300.0,8.482e-05,2]
[394463817,1763605199940,-538.0,8.483e-05,2]
[394463818,1763605199969,-188.52325561,8.483e-05,2]
[394463819,1763605199997,-500.0,8.483e-05,2]
[394463820,1763605200034,-500.0,8.483e-05,2]
[394463821,1763605200067,-500.0,8.483e-05,2]
[394463822,1763605200097,-500.0,8.483e-05,2]
[394463823,1763605200126,-500.0,8.483e-05,2]
[394463824,1763605200158,-500.0,8.483e-05,2]
[394463825,1763605200408,-500.0,8.483e-05,2]
[394463826,1763605200438,-500.0,8.483e-05,2]
[394463827,1763605200465,-498.0974332,8.483e-05,2]
[394463828,1763605200493,-500.0,8.483e-05,2]
[394463829,1763605200523,-500.0,8.483e-05,2]
[394463830,1763605200550,-500.0,8.483e-05,2]
[394463831,1763605200576,-500.0,8.483e-05,2]
[394463832,1763605200607,-500.0,8.483e-05,2]
[394463833,1763605200636,-245.17231404,8.483e-05,2]
[394463834,1763605200668,-500.0,8.483e-05,2]
[394463835,1763605200699,-13.47050552,8.483e-05,2]
[394463836,1763605200788,-486.52949448,8.483e-05,2]
[394463837,1763605200817,-500.0,8.483e-05,2]
[394463838,1763605200846,-500.0,8.483e-05,2]
[394463839,1763605200877,-500.0,8.483e-05,2]
[394463840,1763605200906,-500.0,8.483e-05,2]
[394463841,1763605200935,-500.0,8.483e-05,2]
[394463842,1763605200967,-500.0,8.483e-05,2]
[394463843,1763605200997,-500.0,8.483e-05,2]
[394463844,1763605201026,-500.0,8.483e-05,2]
[394463845,1763605201055,-500.0,8.483e-05,2]
[394463846,1763605201097,-500.0,8.483e-05,2]
[394463847,1763605201127,-500.0,8.483e-05,2]
[394463848,1763605201156,-500.0,8.483e-05,2]
[394463849,1763605201186,-500.0,8.483e-05,2]
[394463850,1763605201216,-500.0,8.483e-05,2]
[394463851,1763605201247,-500.0,8.483e-05,2]
[394463852,1763605201278,-500.0,8.483e-05,2]
[394463853,1763605201328,-500.0,8.483e-05,2]
[394463854,1763605201361,-500.0,8.483e-05,2]
[394463855,1763605201450,-1063.827212,8.483e-05,2]
[394463856,1763605201481,-1063.827212,8.483e-05,2]
[394463857,1763605201508,-500.0,8.483e-05,2]
[394463858,1763605201538,-1063.827212,8.483e-05,2]
[394463859,1763605201568,-1063.827212,8.483e-05,2]
[394463860,1763605201822,-1063.827212,8.483e-05,2]
[394463861,1763605201854,-1063.827212,8.483e-05,2]
[394463862,1763605201886,-500.0,8.483e-05,2]
[394463863,1763605201919,-1063.827212,8.483e-05,2]
[394463864,1763605201950,-500.0,8.483e-05,2]
[394463865,1763605201982,-553.219516,8.483e-05,2]
[394463866,1763605202100,-510.607696,8.483e-05,2]
[394463867,1763605202130,-500.0,8.483e-05,2]
[394463868,1763605202160,-1063.827212,8.483e-05,2]
[394463869,1763605202190,-500.0,8.483e-05,2]
[394463870,1763605202222,-1063.827212,8.483e-05,2]
[394463871,1763605202254,-1063.827212,8.483e-05,2]
[394463872,1763605202285,-95.831336,8.483e-05,2]
[394463873,1763605202358,-404.168664,8.483e-05,2]
[394463874,1763605202389,-1063.827212,8.483e-05,2]
[394463875,1763605202418,-500.0,8.483e-05,2]
[394463876,1763605202453,-1063.827212,8.483e-05,2]
[394463877,1763605202481,-500.0,8.483e-05,2]
[394463878,1763605202510,-1063.827212,8.483e-05,2]
[394463879,1763605202538,-308.7094,8.483e-05,2]
[394463880,1763605202646,-191.2906,8.483e-05,2]
[394463881,1763605202674,-500.0,8.483e-05,2]
[394463882,1763605202703,-500.0,8.483e-05,2]
[394463883,1763605202733,-1063.827212,8.483e-05,2]
[394463884,1763605202762,-500.0,8.483e-05,2]
[394463885,1763605202791,-500.0,8.483e-05,2]
[394463886,1763605202821,-500.0,8.483e-05,2]
[394463887,1763605202849,-427.21515325,8.483e-05,2]
[394463888,1763605202881,-571.5168575,8.483e-05,2]
[394463889,1763605204397,-492.3103545,8.483e-05,2]
[394463890,1763605204431,-1063.827212,8.483e-05,2]
[394463891,1763605204465,-1063.827212,8.483e-05,2]
[394463892,1763605204499,-1063.827212,8.483e-05,2]
[394463893,1763605204534,-1063.827212,8.483e-05,2]
[394463894,1763605204666,-1063.827212,8.483e-05,2]
[394463895,1763605204700,-1063.827212,8.483e-05,2]
[394463896,1763605204734,-1063.827212,8.483e-05,2]
[394463897,1763605204769,-1063.827212,8.483e-05,2]
[394463898,1763605204804,-425.565092,8.483e-05,2]
[394463899,1763605204874,-638.26212,8.483e-05,2]
[394463900,1763605204916,-1063.827212,8.483e-05,2]
[394463901,1763605204953,-1063.827212,8.483e-05,2]
[394463902,1763605204995,-1063.827212,8.483e-05,2]
[394463903,1763605205029,-500.0,8.483e-05,2]
[394463904,1763605205069,-276.695276,8.483e-05,2]
[394463905,1763605205113,-787.131936,8.483e-05,2]
[394463906,1763605205150,-1063.827212,8.483e-05,2]
[394463907,1763605205189,-1063.827212,8.483e-05,2]
[394463908,1763605205226,-1063.827212,8.483e-05,2]
[394463909,1763605205259,-500.0,8.483e-05,2]
[394463910,1763605205313,-1063.827212,8.483e-05,2]
[394463911,1763605205351,-1063.827212,8.483e-05,2]
[394463912,1763605205389,-1063.827212,8.483e-05,2]
[394463913,1763605205427,-1063.827212,8.483e-05,2]
[394463914,1763605205461,-425.565092,8.483e-05,2]
[394463915,1763605206400,682.2917184,0.00013724,7]
[394463916,1763605206606,-638.26212,8.483e-05,2]
[394463917,1763605206642,-1063.827212,8.483e-05,2]
[394463918,1763605206678,-1063.827212,8.483e-05,2]
[394463919,1763605206714,-1033.4321488,8.483e-05,2]
[394463920,1763605206750,-1033.4321488,8.483e-05,2]
[394463921,1763605206803,-1033.4321488,8.483e-05,2]
[394463922,1763605206841,-1033.4321488,8.483e-05,2]
[394463923,1763605206879,-1033.4321488,8.483e-05,2]
[394463924,1763605206915,-1033.4321488,8.483e-05,2]
[394463925,1763605206949,-699.1206608,8.483e-05,2]
[394463926,1763605206991,-334.311488,8.483e-05,2]
[394463927,1763605207024,-1033.4321488,8.483e-05,2]
[394463928,1763605207059,-1033.4321488,8.483e-05,2]
[394463929,1763605207093,-1033.4321488,8.483e-05,2]
[394463930,1763605207127,-1033.4321488,8.483e-05,2]
[394463931,1763605207162,-30.4976848,8.483e-05,2]
[394463932,1763605207198,-1002.934464,8.483e-05,2]
[394463933,1763605207231,-1033.4321488,8.483e-05,2]
[394463934,1763605207265,-1033.4321488,8.483e-05,2]
[394463935,1763605207299,-1033.4321488,8.483e-05,2]
[394463936,1763605207331,-760.1160304,8.483e-05,2]
[394463937,1763605207367,-273.3161184,8.483e-05,2]
[394463938,1763605207400,-1033.4321488,8.483e-05,2]
[394463939,1763605207433,-1033.4321488,8.483e-05,2]
[394463940,1763605207466,-1033.4321488,8.483e-05,2]
[394463941,1763605207500,-1033.4321488,8.483e-05,2]
[394463942,1763605207532,-152.488424,8.483e-05,2]
[394463943,1763605207569,-880.9437248,8.483e-05,2]
[394463944,1763605207601,-1033.4321488,8.483e-05,2]
[394463945,1763605207633,-1033.4321488,8.483e-05,2]
[394463946,1763605207666,-1033.4321488,8.483e-05,2]
[394463947,1763605207699,-1004.0975088,8.483e-05,2]
[394463948,1763605209043,-9163.79611555,8.398e-05,2]
[394463949,1763605210644,-10000.01,8.398e-05,2]
[394463950,1763605210927,-10000.01,8.398e-05,2]
[394463951,1763605211100,-750.34859485,8.398e-05,2]
[394463952,1763605211139,-29.33464,8.483e-05,2]
[394463953,1763605211173,-1033.4321488,8.483e-05,2]
[394463954,1763605211200,-520.44592228,8.487e-05,2]
[394463955,1763605211227,-191.5785411,8.493e-05,2]
[394463956,1763605211254,-842.8458125,8.539e-05,2]
[394463957,1763605211282,-257.9833408,8.546e-05,2]
[394463958,1763605211411,-2748.07199934,8.562e-05,2]
[394463959,1763605211430,-10000.01,8.562e-05,2]
[394463960,1763605212386,500.0,0.00040101,120]
[394463961,1763605212986,500.0,0.00040101,30]
[394463962,1763605213583,500.0,0.00040101,80]
[394463963,1763605214277,500.0,0.00040101,93]
[394463964,1763605214341,151.0,0.00040101,120]
[394463965,1763605214907,500.0,0.00040101,120]
[394463966,1763605215041,151.0,0.00040101,120]
[394463967,1763605215562,500.0,0.00040101,120]
[394463968,1763605216357,151.0,0.00040101,20]
[394463969,1763605217014,151.0,0.00040101,20]
[394463970,1763605257050,164.0,0.00040101,30]
[394464004,1763605350440,-6358.40713494,8.308e-05,2]
[394464005,1763605350462,-204.67772321,8.35e-05,2]
[394464006,1763605350483,-300.0,8.39e-05,2]
[394464007,1763605350504,-500.0,8.391e-05,2]
[394464008,1763605350527,-326.41557401,8.391e-05,2]
[394464009,1763605350550,-388.4913292,8.391e-05,2]
[394464010,1763605350571,-450.29,8.391e-05,2]
[394464011,1763605350593,-12023.80731701,8.392e-05,2]
[394464012,1763605350614,-331.4940726,8.464e-05,2]
[394464013,1763605350636,-12023.80731701,8.477e-05,2]
[394464014,1763605350659,-345.25791539,8.542e-05,2]
[394464015,1763605350682,-166747.35161663,8.562e-05,2]
[394464022,1763605539190,1100.38435908,0.000401,20]
[394464032,1763605624539,299.81305253,0.00013724,7]
[394464033,1763605627080,1198.05295792,0.00013724,7]
[394464046,1763605645322,39933.15574125,0.000401,120]
[394464049,1763605658864,1369.59586235,0.000401,21]
[394464050,1763605663559,-512.28031463,7.885e-05,2]
[394464051,1763605663591,-512.28031463,7.965e-05,2]
[394464052,1763605663620,-204.81858738,8.005e-05,2]
[394464056,1763605682795,3541.55028455,0.000401,120]
[394464060,1763605685733,161.99885202,0.000401,120]
[394464061,1763605692356,212.06849749,0.000401,60]
[394464068,1763605704463,898.56913006,0.00040099,120]
[394464074,1763605710919,3238.54780908,0.00040099,30]
[394464076,1763605715405,261.7757586,0.00040099,60]
[394464077,1763605715506,153.57119404,0.00040099,30]
[394464084,1763605720316,982.59048564,0.00040099,30]
[394464086,1763605744477,188.930134,0.00030137,120]
[394464087,1763605779922,1370.54101051,7.796e-05,2]
[394464089,1763605806626,241.51922872,0.00013724,7]
[394464130,1763605832127,-1370.54101051,8.043e-05,2]
[394464131,1763605832137,-1370.54101051,8.124e-05,2]
[394464133,1763605832146,-406.0826051,8.14e-05,2]
[394464135,1763605832155,-1020.48473036,8.154e-05,2]
[394464137,1763605832165,-457.33367152,8.208e-05,2]
[394464140,1763605832325,-54.94664311,8.208e-05,2]
[394464141,1763605832335,-317.01456502,8.245e-05,2]
[394464142,1763605832344,-300.0,8.387e-05,2]
[394464143,1763605832353,-300.0,8.387e-05,2]
[394464144,1763605832363,-256.90046735,8.387e-05,2]
[394464403,1763605840012,-43.09953265,8.387e-05,2]
[394464405,1763605840023,-316.40146739,8.387e-05,2]
[394464586,1763605846119,-883.59853261,8.387e-05,2]
[394464587,1763605846129,-186.98483252,8.387e-05,2]
[394464588,1763605846138,-392.61372177,8.387e-05,2]
[394464589,1763605846146,-157.606622,8.39e-05,2]
[394464590,1763605846155,-464.37001344,8.529e-05,2]
[394464591,1763605846164,-191.5785411,8.57e-05,2]
[394464592,1763605846173,-191.5785411,8.57e-05,2]
[394464593,1763605846183,-191.5785411,8.57e-05,2]
[394464594,1763605846195,-914.75905974,8.637e-05,2]